Cogmind - Beta 16 @@@ ROGUE MODE // 2025.12.01 @ 03:04:12 Player: tengiz Result: Self-destructed Performance ------------- Evolutions (2) 1000 Regions Visited (4) 800 Robots Destroyed (27) 135 Value Destroyed (676) 676 Prototype IDs (4) 80 Alien Tech Used (0) 0 Bonus (107) 107 TOTAL SCORE: 2798 Bonus ------- Follower Combat Kills 107 Cogmind --------- Core Integrity 352/550 Matter 271/300 Energy 90/100 System Corruption 0% Temperature Hot (290) Movement Hovering (50) Location -8/Materials Parts ------- > --- POWER (1) -------- (None) > --- PROPULSION (4) --- Aerolev Unit > --- UTILITY (4) ------ Small Storage Unit Hacking Suite Hacking Suite > --- WEAPON (2) ------- (None) > --- INVENTORY (8) ---- Flight Unit Melee Analysis Suite ECM Suite Hacking Suite Hacking Suite Hacking Suite Peak State ------------ > --- POWER ------------ Ion Engine > --- PROPULSION ------- Aerolev Unit Flight Unit Flight Unit Flight Unit > --- UTILITY ---------- Small Storage Unit Experimental Sensor Array Hacking Suite Hacking Suite > --- WEAPON ----------- Small Laser Assault Rifle > --- INVENTORY -------- Flight Unit Improved Terrain Scanner ECM Suite Hacking Suite Hacking Suite Light EM Pulse Cannon Datajack [Rating: 27] Favorites ----------- Power Ion Engine Engine Ion Engine Propulsion Flight Unit Treads Light Treads Leg Aluminum Leg Hover Unit Hover Unit Flight Unit Flight Unit Utility Small Storage Unit Device Experimental Sensor Array Storage Small Storage Unit Hackware Hacking Suite Weapon Small Laser Energy Gun Small Laser Energy Cannon Light EM Pulse Cannon Ballistic Gun Assault Rifle Impact Weapon Flail Special Melee Weapon Datajack Build | -11 -10 -10 -9 -8 ------- Run | Yrd Mat Min Mat Mat Slots Evolved 4 | . . . 2 2 Power . | . . . . . Propulsion 2 | . . . 1 1 Utility 2 | . . . 1 1 Weapon . | . . . . . Parts Attached 34 | 9 2 4 14 5 Power 2 | 2 . . . . Engine 2 | 2 . . . . Core . | . . . . . Reactor . | . . . . . Propulsion 20 | 2 2 2 11 3 Treads 7 | 2 . . 5 . Leg 1 | . . . . 1 Wheel . | . . . . . Hover 4 | . 2 . . 2 Flight 8 | . . 2 6 . Utility 5 | 2 . 1 1 1 Device 2 | 1 . 1 . . Storage 1 | 1 . . . . Processor . | . . . . . Hackware 2 | . . . 1 1 Protection . | . . . . . Artifact . | . . . . . Weapon 7 | 3 . 1 2 1 Energy Gun 2 | 2 . . . . Energy Cannon 2 | . . . 1 1 Ballistic Gun 1 | 1 . . . . Ballistic Cannon . | . . . . . Launcher . | . . . . . Special Weapon . | . . . . . Impact Weapon 1 | . . . 1 . Slashing Weapon . | . . . . . Piercing Weapon . | . . . . . Special Melee Weapon 1 | . . 1 . . Unidentified Prototypes 4 | . . 1 1 2 Parts Lost 13 | . . . 2 11 Power 2 | . . . 1 1 Propulsion 4 | . . . 1 3 Utility 2 | . . . . 2 Weapon 5 | . . . . 5 Highest Loss Streak 8 | . . . 2 8 To Critical Strikes . | . . . . . Average Backups 6 | 1 3 5 6 7 Power . | . 1 1 . . Propulsion . | . . . . . Utility 3 | . . 2 3 5 Weapon 1 | . 1 1 2 . Tool/Special . | . . . . . Unused Backups 5 | . . . . 5 Power . | . . . . . Propulsion . | . . . . . Utility 5 | . . . . 5 Weapon . | . . . . . Tool/Special . | . . . . . Average Slot Usage (%) 90 | . 92 80 92 90 Engine 11 | . 14 14 10 8 Treads 13 | . 15 . 18 . Hover 1 | . 12 4 . 3 Flight 14 | . . 23 12 25 Device 11 | . 10 10 12 5 Storage 8 | . 10 . 9 9 Hackware 6 | . . . 6 17 Energy Gun 10 | . 14 14 11 3 Energy Cannon 2 | . . . 3 4 Ballistic Gun 5 | . 14 6 4 8 Special Melee Weapon 2 | . . 8 1 . Peak Build Rating 27 | 9 9 14 22 27 Average Rating 17 | 5 7 11 19 21 On Entrance 9 | . 9 5 14 20 Avg Prop Armor Cover (%) 6 | . . . 2 8 Naked Turns . | . . . . . Heaviest Build 17 | 15 15 9 17 17 Greatest Support 63 | 40 40 12 63 16 Greatest Overweight (x) 3 | 2 1 1 3 1 Average Overweight (x) . | . . . . . Largest Inventory Capacity 8 | 8 8 5 8 8 Average Capacity 7 | 7 7 5 7 8 Most Carried 8 | 3 5 5 8 8 Average Carried 6 | 1 3 5 6 7 Final Capacity 8 | 8 5 5 8 8 Final Carried 8 | 2 5 5 8 6 Class Distribution -------------------- 78% | Mutant 11% | Scavenger-Mutant 5% | Hacker-Mutant 4% | Hacker-Sprinter Dominant Class ---------------- Mutant | -10/Materials Mutant | -10/Mines Mutant | -9/Materials Hacker-Mutant | -8/Materials Resources | -11 -10 -10 -9 -8 ----------- Run | Yrd Mat Min Mat Mat Matter Collected 830 | 138 104 184 300 104 Remotely . | . . . . . Salvage Created 1101 | 137 104 52 553 255 Parts 61 | 5 9 7 32 8 Haulers Intercepted 1 | . . . 1 . Recyclers Shooed 1 | 1 . . . . Parts Field Recycled . | . . . . . Retrieved Matter . | . . . . . Parts Self-Destructed . | . . . . . Prevented . | . . . . . Parts Restored . | . . . . . Kills | -11 -10 -10 -9 -8 ------- Run | Yrd Mat Min Mat Mat Combat Hostiles Destroyed 18 | . . 3 11 4 Melee 1 | . . . 1 . Guns 13 | . . 3 8 2 Cannons 4 | . . . 2 2 Classes Destroyed 9 | 2 1 1 4 1 Builder 1 | . . . 1 . Tunneler 2 | 2 . . . . Hauler 1 | . . . 1 . Recycler 2 | 1 1 . . . Watcher 3 | . 2 . . 1 Swarmer 6 | . . 3 3 . Grunt 5 | . . . 3 2 Duelist 1 | . . . . 1 Sentry 6 | . . . 5 1 Best Kill Streak 4 | 3 2 3 3 4 Combat Bots Only 4 | . . 3 3 4 Max Kills in Single Turn 1 | 1 1 1 1 1 Gunslinging . | . . . . . Exploded . | . . . . . Melee 1 | . . . 1 . Uniques/NPCs Destroyed . | . . . . . Combat | -11 -10 -10 -9 -8 -------- Run | Yrd Mat Min Mat Mat Hostile Shots Fired 171 | . 2 14 78 77 Missed 53 | . 1 4 27 21 Hits 118 | . 1 10 51 56 Melee 2 | . . . . 2 Projectile 116 | . 1 10 51 54 Critical Strikes 5 | . . . 1 4 Damage Taken 1666 | . 10 77 705 874 Core 393 | . 10 31 154 198 Absorbed by Shields . | . . . . . Core Remaining (%) 81 | 100 . 83 61 . Volleys Fired 95 | 7 9 8 46 25 Largest 2 | 2 2 2 2 2 Hottest 106 | 90 70 60 106 88 Shots Fired 174 | 14 17 15 83 45 Gun 145 | 14 17 15 71 28 Cannon 29 | . . . 12 17 Launcher . | . . . . . Special . | . . . . . Kinetic 53 | 6 9 7 11 20 Thermal 100 | 8 8 8 60 16 Explosive . | . . . . . Electromagnetic 21 | . . . 12 9 Robot Hit Streak 16 | 9 2 3 13 16 Robot Miss Streak 3 | 1 2 3 2 2 Penetration Max . | . . . . . Secondary Targets 1 | . . 1 . . Max Gunslinging Chain 1 | . . 1 . . Shots Hit Robots 120 | 10 6 7 64 33 Core Hits 44 | 4 4 3 21 12 Critical Kills . | . . . . . Critical Parts Destroyed . | . . . . . Critical Strikes 1 | . 1 . . . Burn 1 | . 1 . . . Melee Attacks 17 | . . 1 14 2 Impact 6 | . . . 6 . Slashing . | . . . . . Piercing . | . . . . . Sneak Attacks 7 | . . 1 6 . Combat Hostiles . | . . . . . Follow-up Attacks . | . . . . . Damage Inflicted 1678 | 121 75 83 840 559 Guns 1064 | 121 75 83 554 231 Cannons 514 | . . . 192 322 Explosions . | . . . . . Melee 92 | . . . 92 . Ramming 8 | . . . 2 6 Kinetic 347 | 45 38 26 72 166 Thermal 820 | 76 37 57 482 168 Explosive . | . . . . . Electromagnetic 411 | . . . 192 219 Impact 92 | . . . 92 . Slashing . | . . . . . Piercing . | . . . . . Highest Corruption . | . . . . . Average Corruption . | . . . . . Corruption Purged . | . . . . . Corruption Blocked . | . . . . . Overload Shots . | . . . . . Overflow Damage 9 | . . . 9 . Projectiles . | . . . . . Explosions . | . . . . . Melee 9 | . . . 9 . Knockbacks . | . . . . . Impact . | . . . . . Kinetic . | . . . . . Secondary . | . . . . . Self-Inflicted Damage 3 | . . . 1 2 Shots . | . . . . . Rammed 2 | . . . 1 1 Targets Rammed 3 | . . . 1 2 Kicked 1 | . . . . 1 Crushed . | . . . . . Highest Temperature 335 | 30 27 42 335 281 Average Temperature 61 | 12 11 20 82 66 Received Heat Transfer 627 | . 6 . 198 423 Effects 3 | . . . 3 . Interference 3 | . . . 3 . Siege Activations . | . . . . . Martial Activations . | . . . . . Shielding Activations . | . . . . . Robots Disrupted . | . . . . . Combat Hostiles . | . . . . . Robots Corrupted . | . . . . . Combat Hostiles . | . . . . . Parts Fried 2 | . . . 2 . Impact Corruptions 1 | . . . 1 . Robots Melted . | . . . . . Combat Hostiles . | . . . . . Parts Melted 2 | . . . 2 . Heat Transferred 2144 | 222 185 125 1277 335 Parts Sabotaged . | . . . . . Parts Stolen . | . . . . . Parts Stripped . | . . . . . Power Chain Reactions . | . . . . . Alert | -11 -10 -10 -9 -8 ------- Run | Yrd Mat Min Mat Mat Maximum Alert Level 1 | . . . 1 . Low Security (%) 98 | 100 100 100 97 100 Level 1 1 | . . . 2 . Level 2 . | . . . . . Level 3 . | . . . . . Level 4 . | . . . . . Level 5 . | . . . . . High Security . | . . . . . Max Security . | . . . . . Peak Influence 217 | 5 7 70 217 50 Initial 20 | . . . . 20 Average 68 | 2 1 24 98 17 Influence Increases 794 | 15 19 70 583 107 Destroy 0b10 Robot/C 540 | . . 60 400 80 Destroy 0b10 Robot/NC 45 | 15 15 . 10 5 Destroy Leader 148 | . 4 10 112 22 Allied During Kill 26 | . . . 26 . Successful Hack 4 | . . . 4 . Destroy Structure 1 | . . . 1 . Lose Combat Pursuer 30 | . . . 30 . Influence Decreases 794 | 15 19 70 534 156 Entered New Map 29 | . . . . 29 Time Decay 658 | 15 19 70 474 80 Lost Part 67 | . . . 20 47 Lost Ally 40 | . . . 40 . Squads Dispatched 4 | . 1 . 2 1 Investigation 3 | . 1 . 1 1 Extermination . | . . . . . Reinforcement 1 | . . . 1 . Assault . | . . . . . Garrison . | . . . . . Intercept . | . . . . . Searches Triggered . | . . . . . Construction Impeded . | . . . . . Haulers Reinforced . | . . . . . Active Scanning Responses . | . . . . . Cargo Convoy Interrupts . | . . . . . Stealth | -11 -10 -10 -9 -8 --------- Run | Yrd Mat Min Mat Mat Distress Signals 3 | . . . 3 . Communications Jammed . | . . . . . Distress Signals . | . . . . . Times Spotted 46 | . 6 3 26 11 Peak Tracking Total 5 | . 3 2 5 4 Tactical Retreats 2 | . . . 2 . Traps | -11 -10 -10 -9 -8 ------- Run | Yrd Mat Min Mat Mat Traps Triggered 3 | . 1 . 1 1 Indirectly . | . . . . . Trap Hack Attempts . | . . . . . Triggered . | . . . . . Disarmed . | . . . . . Reprogrammed . | . . . . . Reused . | . . . . . Traps Extracted . | . . . . . Installed . | . . . . . Triggered . | . . . . . Machines | -11 -10 -10 -9 -8 ---------- Run | Yrd Mat Min Mat Mat Machines Disabled . | . . . . . Max in Single Turn . | . . . . . Machines Repaired . | . . . . . Machines Dismantled . | . . . . . Machines Sabotaged . | . . . . . Overloaded Fab Kills . | . . . . . Hacking | -11 -10 -10 -9 -8 --------- Run | Yrd Mat Min Mat Mat Machines Accessed 6 | . . . 5 1 Terminals 5 | . . . 4 1 Fabricators . | . . . . . Repair Stations . | . . . . . Recycling Units . | . . . . . Scanalyzers 1 | . . . 1 . Garrison Access . | . . . . . Total Hacks 16 | . . . 15 1 Successful 13 | . . . 12 1 Failed 2 | . . . 2 . Catastrophic . | . . . . . Database Lockouts 1 | . . . 1 . Manual . | . . . . . Terminals 6 | . . . 5 1 Fabricators . | . . . . . Repair Stations . | . . . . . Recycling Units . | . . . . . Scanalyzers 10 | . . . 10 . Garrison Access . | . . . . . Terminal Hacks 5 | . . . 4 1 Alert Level 1 | . . . 1 . Maintenance Status 1 | . . . 1 . Recall Investigation 1 | . . . . 1 Zone Layout 2 | . . . 2 . Fabricator Hacks . | . . . . . Repair Station Hacks . | . . . . . Recycling Unit Hacks . | . . . . . Scanalyzer 8 | . . . 8 . Insert Component 3 | . . . 3 . Analyze 3 | . . . 3 . Retrieve Study 2 | . . . 2 . Garrison Access Hacks . | . . . . . Unauthorized Hacks . | . . . . . Terminals . | . . . . . Fabricators . | . . . . . Repair Stations . | . . . . . Recycling Units . | . . . . . Scanalyzers . | . . . . . Garrison Access . | . . . . . Data Cores Recovered . | . . . . . Used . | . . . . . Hacking Detections 4 | . . . 3 1 Full Trace Events . | . . . . . Feedback Events . | . . . . . Feedback Blocked . | . . . . . Robot Schematics Acquired . | . . . . . Robots Built . | . . . . . Authchips . | . . . . . Time . | . . . . . Total Robot Build Rating . | . . . . . Part Schematics Acquired 3 | . . . 3 . Parts Built . | . . . . . Authchips . | . . . . . Time . | . . . . . Total Part Build Rating . | . . . . . Part Studies Acquired 2 | . . . 2 . Parts Repaired . | . . . . . Time . | . . . . . Parts Recycled . | . . . . . Recycled Matter . | . . . . . Retrieved Matter . | . . . . . Retrieved Components . | . . . . . Parts Scanalyzed 3 | . . . 3 . Part Schematics Acquired 3 | . . . 3 . Parts Damaged . | . . . . . Bothacking | -11 -10 -10 -9 -8 ------------ Run | Yrd Mat Min Mat Mat Used RIF Installer . | . . . . . Robots Hacked 3 | . . 1 2 . Non-combat 3 | . . 1 2 . Combat . | . . . . . Robot Hacks Applied 4 | . . 1 3 . parse_system 3 | . . 1 2 . no_distress 1 | . . . 1 . Relay Couplers Released . | . . . . . Fabnet Peak Effective % . | . . . . . Robots Rewired . | . . . . . Allies Hacked . | . . . . . Hacks Repelled . | . . . . . Allies | -11 -10 -10 -9 -8 -------- Run | Yrd Mat Min Mat Mat Total Allies 3 | . . 3 . . Largest Group 3 | . . 3 3 . Highest-Rated Group 40 | . . 40 40 . Highest-Rated Ally 16 | . . 16 16 . Total Orders . | . . . . . Ally Attacks 41 | . . . 41 . Total Damage 373 | . . . 373 . Kills 9 | . . . 9 . Allies Corrupted . | . . . . . Allies Melted . | . . . . . Intel | -11 -10 -10 -9 -8 ------- Run | Yrd Mat Min Mat Mat Active Infowar (turns) 1691 | 9 108 148 1271 155 Sensors 1541 | . . 148 1270 123 Terrain 360 | 9 108 . 211 32 Robot Analysis Total . | . . . . . Derelict Logs Recovered 1 | . . 1 . . Drone Launches . | . . . . . Drone Recoveries . | . . . . . Exploration | -11 -10 -10 -9 -8 ------------- Run | Yrd Mat Min Mat Mat Turns Passed 2033 | 123 148 204 1306 252 Spaces Moved 1554 | 56 117 340 846 195 Core 4 | 4 . . . . Treads 460 | 52 30 . 378 . Legs 5 | . . . . 5 Wheels . | . . . . . Hover 119 | . 87 8 . 24 Flight 966 | . . 332 468 166 Fastest Speed 31 | 50 56 37 34 31 Average Speed 95 | 156 91 41 120 59 Slowest Speed 280 | 160 160 120 280 190 Overloaded Moves . | . . . . . Propulsion Burnouts . | . . . . . Robots Hopped 1 | . . . 1 . Potential Cave-ins . | . . . . . Cave-ins Triggered . | . . . . . Exploration Rate (%) 30 | 5 17 50 57 22 Regions Visited 4 Branch Regions 1 Pre-discovered Areas . | . . . . . Known Exits Taken 1 | . . . 1 . Unknown Exits Taken 3 | 1 1 1 . . Scrap Searched 2 | . . 2 . . Spaces Dug . | . . . . . Terrain Destroyed . | . . . . . Melee . | . . . . . Projectile . | . . . . . AOE . | . . . . . Terrain Rammed . | . . . . . Walls Destroyed . | . . . . . Machines Disabled . | . . . . . Actions | -11 -10 -10 -9 -8 --------- Run | Yrd Mat Min Mat Mat Total 1906 | 73 141 384 1027 281 Wait 144 | . 6 30 70 38 Move 1548 | 55 116 339 843 195 Hop 1 | . . . 1 . Pick Up 21 | 2 3 . 11 5 Fast Attach 15 | 6 . 3 5 1 Attach 13 | 1 . . 5 7 Detach 3 | . 2 . 1 . Swap 29 | 2 3 1 19 4 Drop 17 | . 2 2 11 2 Fire 95 | 7 9 8 46 25 Melee 17 | . . 1 14 2 Ram 2 | . . . 1 1 Kick 1 | . . . . 1 Crush . | . . . . . Escape Stasis . | . . . . . Rewire . | . . . . . Trap . | . . . . . Miscellaneous . | . . . . . Route ------- -11/Scrapyard -10/Materials -10/Mines -9/Materials (discovered 3 exits: *Mat x2 / [*Min]) -8/Materials History --------- Turn | Location | Event 12 | -11/Scrapyard | Discovered new exit (range 15) 124 | -11/Scrapyard | Entered Materials 264 | -10/Materials | Discovered new exit (range 15) 272 | -10/Materials | Entered Mines 323 | -10/Mines | Build established: Mutant 325 | -10/Mines | Found a damaged Exp. Sensor Array with a note attached 328 | -10/Mines | Found Prototype Device 328 | -10/Mines | Identified Exp. Sensor Array 369 | -10/Mines | Learned location of 1 exit from Materials 419 | -10/Mines | Assisted by bots powering up and referring to "LRC-V3" 441 | -10/Mines | Discovered new exit (range 12) 476 | -10/Mines | Entered Materials 476 | -9/Materials | Accompanied by 3 allies 476 | -9/Materials | Evolved 2 slots: Propulsion x1, Utility x1 477 | -9/Materials | Identified exit to Materials 669 | -9/Materials | Discovered new exit (range 16) 687 | -9/Materials | Central database locked down 1764 | -9/Materials | Discovered exit to Materials (range 14) 1782 | -9/Materials | Entered another Materials area 1782 | -8/Materials | Evolved 2 slots: Propulsion x1, Utility x1 1936 | -8/Materials | Lost 3 parts (1n1u1w) 2034 | -8/Materials | Self-destructed Last Messages --------------- 01995_ Flight Unit destroyed. 01995_ K-01 Serf collects debris. 01998_ Dropped Aluminum Leg. 02002_ Acquired Prototype Energy Cannon. 02003_ Identified Adv. Beam Cannon. 02009_ Slug penetrates Wall. 02012_ Critical hit (Burn: +37). 02016_ Assault Rifle destroyed. 02016_ Critical hit (Burn: +37). 02023_ Jacked G-47 Trooper... 02024_ Slug penetrates Wall. 02024_ Aerolev Unit destroyed. 02025_ Imp. Terrain Scanner destroyed. 02027_ Slug penetrates Wall. 02027_ Critical hit (Burn: +37). 02029_ Ion Engine+ destroyed. 02031_ Slug penetrates Wall. 02031_ Datajack destroyed. 02034_ Slug penetrates Wall. 02034_ Adv. Beam Cannon destroyed. Map ----- +----------------------------------------------------+ | | | ????????????????????????????????????????????????? | | ????????????????????????????????????????????????? | | ????????????????????????????????????????????????? | | ????????????????????????????????????????????????? | | ????????????????????????????????????????????????? | | ????????????????????????????????????????????????? | | ????????????????????????????????????????????????? | | ????????????????????????????????????????????????? | | ????????????????????????????????????????????????? | | ????????????????????????????????????????????????? | | ????????????????????????????????????????????????? | | ????????????????????????????????????????????????? | | ???????????????????# ?????????????????????????? | | ???????????????????# ?????????????????????????? | | ???????????????????# ?????????????????????????? | | ???????????????????# #????????#???????????????? | | ?????????????????#?# #?? ?????? ??????????????? | | ???????????????????# #??????? ????????????????? | | ???????????????????# #????????????????????????? | | ???????????????????# #????????????????????????? | | ???????????????????# #????????????????????????? | | ??????????????#???## #????#???????????????????? | | ??????????????#????# #???????????? ???????????? | | ?????????????####### ########?????????????????? | | ?????????????# #@ #?????????????????? | | ?????????????# # """ #?????????????????? | | ?????????????# """ # g""" #?????????????????? | | ????????????## """ =hgg""" #??? ? ?????????? | | ?????????????# """ # #???? "?????????? | | ?????????????# # k #??? "?????????? | | ?????????????# ########### ""????????? | | ?????????????# T ????????? | | ?????????????# ???????? | | ?????????????# | " ""????????? | | ?????????????# !%" " ""????????? | | ?????????????# = * """???????? | | ?????????????# ??????? | | ?????????????# ! ??????? | | ?????????????+ % ##?????????? | | ?????????????# #??????????? | | ?????????????# #??????????? | | ?????????????### ######## #??????????? | | ???????????????#+???????# =* #??????????? | | ??????????????? ???????# =[ #??????????? | | ??????????????# ???????# *[ #??????????? | | ??????????????# ???????# #??????????? | | ??????????????# ???????+ #??????????? | | ??????????????# ???????# #??????????? | | ??????????????# ?????? ?# ###+####??????????? | +----------------------------------------------------+ Best States ------------- Heat Dissipation 31 Energy Generation 12 Energy Capacity 250 Matter Stores 300 Matter Capacity 300 Sight Range 16 Robot Scan Range 20 Terrain Scan Range 16 Terrain Scan Density 10 Evasion (%) 63 Recoil Reduction 3 Offensive Hacking 20 Item Schematics ----------------- Lgt. EM Pulse Cannon | -9/Materials | Scanalyzed Datajack | -9/Materials | Scanalyzed Ion Engine | -9/Materials | Scanalyzed Robot Schematics ------------------ None Fabricated ------------ Nothing Repaired ---------- Nothing Studied --------- Ion Engine | -9/Materials | Hacked Sml. Laser | -9/Materials | Hacked Alien Tech Used ----------------- None Achievements -------------- Item+ Not Today, Chutes Challenges ------------ None Game ------ Seed DamperCombatRigger Manual? 0 Play Time 00:24:31 Cumulative 9.1 hours Start 2025.12.01 @ 02:40:37 End 2025.12.01 @ 03:04:12 Sessions 1 Manual Loads 0 Difficulty Rogue Special Mode None Game No. 30 Rogue 30 Adventurer 0 Explorer 0 Win Type - Total 0 Types 0/0/0/0/0/0/0/0/0/0 Lore% 3 Gallery% 14 Achievement% 12 Wizard Run 0 Options --------- Layout 1 ASCII 0 Keyboard 0 Movement Arrows Keybinds 0 Fullscreen 1 Font 24/Smallcaps Map View 50x35 Zoom Use 0% Tactical HUD 1 Map Filters NONE Filters NONE Steam 1 RUN: 8071d69b-4738-4ad2-b4f1-a29eadad4c75